Cogmind - Beta 17 @@@ ROGUE MODE // 2026.07.20 @ 01:25:42 Player: Ry645 Result: Destroyed by G-34 Mercenary with Small Laser Performance ------------- Evolutions (0) 0 Regions Visited (1) 200 Robots Destroyed (28) 140 Value Destroyed (442) 442 Prototype IDs (0) 0 Alien Tech Used (0) 0 Bonus (0) 0 TOTAL SCORE: 782 Bonus ------- None Cogmind --------- Core Integrity 0/250 Matter 41/300 Energy 210/250 System Corruption 5% Temperature Cool (63) Movement Walking (190) Ox1 Location -10/Materials Parts ------- > --- POWER (1) -------- Ion Engine > --- PROPULSION (2) --- Aluminum Leg (fused) Aluminum Leg > --- UTILITY (2) ------ Large Storage Unit Signal Interpreter > --- WEAPON (2) ------- Rocket Launcher Rocket Launcher > --- INVENTORY (15) --- Large Storage Unit High-capacity Storage Unit Light Armor Plating Hacking Suite Assault Rifle Assault Rifle Assault Rifle Assault Rifle Rocket Launcher Rocket Launcher Peak State ------------ > --- POWER ------------ Ion Engine > --- PROPULSION ------- Light Treads Light Treads > --- UTILITY ---------- Medium Storage Unit Light Armor Plating > --- WEAPON ----------- Assault Rifle Rocket Launcher > --- INVENTORY -------- Light Ion Engine Medium Storage Unit Signal Interpreter Assault Rifle Assault Rifle Assault Rifle Grenade Launcher Rocket Launcher Rocket Launcher Rocket Launcher [Rating: 9] Favorites ----------- Power Ion Engine Engine Ion Engine Propulsion Light Treads Treads Light Treads Leg Aluminum Leg Utility Medium Storage Unit Storage Medium Storage Unit Processor Signal Interpreter Protection Light Armor Plating Weapon Assault Rifle Energy Gun Small Laser Ballistic Gun Assault Rifle Launcher Rocket Launcher Build | -11 -10 ------- Run | Yrd Mat Slots Evolved . | . . Power . | . . Propulsion . | . . Utility . | . . Weapon . | . . Parts Attached 30 | 5 25 Power 5 | 1 4 Engine 5 | 1 4 Core . | . . Reactor . | . . Propulsion 5 | 2 3 Treads 3 | 2 1 Leg 2 | . 2 Wheel . | . . Hover . | . . Flight . | . . Utility 8 | 1 7 Device . | . . Storage 5 | 1 4 Processor 2 | . 2 Hackware . | . . Protection 1 | . 1 Artifact . | . . Weapon 12 | 1 11 Energy Gun 1 | . 1 Energy Cannon . | . . Ballistic Gun 6 | 1 5 Ballistic Cannon . | . . Launcher 5 | . 5 Special Weapon . | . . Impact Weapon . | . . Slashing Weapon . | . . Piercing Weapon . | . . Special Melee Weapon . | . . Unidentified Prototypes . | . . Parts Lost 2 | . 2 Power 1 | . 1 Propulsion 1 | . 1 Utility . | . . Weapon . | . . Highest Loss Streak 1 | . 1 To Critical Strikes . | . . Average Backups 7 | 1 8 Power 1 | . 1 Propulsion . | . . Utility 1 | . 1 Weapon 4 | . 4 Tool/Special . | . . Unused Backups 11 | . 11 Power 1 | . 1 Propulsion . | . . Utility 5 | . 5 Weapon 5 | . 5 Tool/Special . | . . Average Slot Usage (%) 95 | . 95 Engine 11 | . 11 Treads 23 | . 23 Leg 3 | . 3 Storage 18 | . 18 Processor 5 | . 5 Protection 3 | . 3 Energy Gun 1 | . 1 Ballistic Gun 24 | . 24 Launcher 1 | . 1 Peak Build Rating 9 | 5 9 Average Rating 7 | 4 7 On Entrance 2 | . 5 Avg Prop Armor Cover (%) . | . . Naked Turns . | . . Heaviest Build 29 | 10 29 Greatest Support 40 | 40 40 Greatest Overweight (x) 1 | . 1 Average Overweight (x) . | . . Largest Inventory Capacity 15 | 8 15 Average Capacity 10 | 7 10 Most Carried 11 | 5 11 Average Carried 7 | 1 8 Final Capacity 15 | 8 15 Final Carried 10 | 3 10 Class Distribution -------------------- 100% | Mutant Dominant Class ---------------- Mutant | -10/Materials Resources | -11 -10 ----------- Run | Yrd Mat Matter Collected 895 | 274 621 Remotely . | . . Salvage Created 578 | 72 506 Parts 46 | 1 45 Haulers Intercepted 2 | . 2 Recyclers Shooed . | . . Parts Field Recycled . | . . Retrieved Matter . | . . Parts Self-Destructed . | . . Prevented . | . . Parts Restored . | . . Kills | -11 -10 ------- Run | Yrd Mat Combat Hostiles Destroyed 14 | . 14 Guns 8 | . 8 AOE 6 | . 6 Classes Destroyed 8 | 1 7 Worker 2 | . 2 Builder 4 | . 4 Hauler 2 | . 2 Recycler 1 | 1 . Operator 2 | . 2 Watcher 3 | . 3 Swarmer 8 | . 8 Grunt 6 | . 6 Best Kill Streak 3 | 1 3 Combat Bots Only 3 | . 3 Max Kills in Single Turn 3 | 1 3 Gunslinging . | . . Exploded 3 | . 3 Melee . | . . Uniques/NPCs Destroyed . | . . Combat | -11 -10 -------- Run | Yrd Mat Hostile Shots Fired 99 | . 99 Missed 31 | . 31 Hits 68 | . 68 Projectile 68 | . 68 Critical Strikes 1 | . 1 Damage Taken 984 | . 984 Core 255 | . 255 Absorbed by Shields . | . . Regen/Repaired (Parts) 33 | . 33 Core Remaining (%) 100 | 100 . Volleys Fired 81 | 8 73 Largest 2 | 1 2 Hottest 66 | 20 66 Shots Fired 154 | 8 146 Gun 138 | 8 130 Cannon . | . . Launcher 16 | . 16 Special . | . . Kinetic 118 | 8 110 Thermal 20 | . 20 Explosive 16 | . 16 Electromagnetic . | . . Robot Hit Streak 9 | 4 9 Robot Miss Streak 5 | 2 5 Penetration Max . | . . Secondary Targets 2 | . 2 Max Gunslinging Chain 1 | . 1 Shots Hit Robots 83 | 5 78 Core Hits 40 | 2 38 Critical Kills . | . . Critical Parts Destroyed . | . . Critical Strikes . | . . Melee Attacks . | . . Impact . | . . Slashing . | . . Piercing . | . . Sneak Attacks . | . . Combat Hostiles . | . . Follow-up Attacks . | . . Damage Inflicted 1679 | 63 1616 Guns 982 | 63 919 Cannons . | . . Explosions 689 | . 689 Melee . | . . Ramming 8 | . 8 Kinetic 872 | 63 809 Thermal 110 | . 110 Explosive 689 | . 689 Electromagnetic . | . . Impact . | . . Slashing . | . . Piercing . | . . Highest Corruption 5 | . 5 Average Corruption 3 | . 3 Corruption Purged . | . . Corruption Blocked . | . . Effects 39 | . 39 Message Errors 9 | . 9 Matter Fused 6 | . 6 Heat Flow Errors 6 | . 6 Energy Discharges 9 | . 9 Parts Fused 2 | . 2 Data Loss (minor) 2 | . 2 Data Loss (major) 2 | . 2 Misfires 2 | . 2 Weapon Failures 1 | . 1 Overload Shots . | . . Overflow Damage 18 | . 18 Projectiles . | . . Explosions 18 | . 18 Melee . | . . Knockbacks . | . . Impact . | . . Kinetic . | . . Secondary . | . . Self-Inflicted Damage 171 | . 171 Shots 3 | . 3 Rammed 1 | . 1 Targets Rammed 1 | . 1 Kicked . | . . Crushed . | . . Highest Temperature 277 | . 277 Average Temperature 79 | . 79 Received Heat Transfer 279 | . 279 Effects 1 | . 1 Interference 1 | . 1 Siege Activations . | . . Martial Activations . | . . Shielding Activations . | . . Robots Disrupted . | . . Combat Hostiles . | . . Robots Corrupted . | . . Combat Hostiles . | . . Parts Fried . | . . Impact Corruptions . | . . Robots Melted . | . . Combat Hostiles . | . . Parts Melted . | . . Heat Transferred 250 | . 250 Parts Sabotaged . | . . Parts Stolen . | . . Parts Stripped . | . . Power Chain Reactions . | . . Alert | -11 -10 ------- Run | Yrd Mat Maximum Alert Level . | . . Low Security (%) 100 | 100 100 Level 1 . | . . Level 2 . | . . Level 3 . | . . Level 4 . | . . Level 5 . | . . High Security . | . . Max Security . | . . Peak Influence 130 | 5 130 Initial . | . . Average 43 | . 46 Influence Increases 603 | 5 598 Destroy 0b10 Robot/C 280 | . 280 Destroy 0b10 Robot/NC 70 | 5 65 Destroy Leader 70 | . 70 Successful Hack 28 | . 28 Disable Machine 30 | . 30 Destroy Structure 125 | . 125 Influence Decreases 510 | 5 505 Time Decay 490 | 5 485 Lost Part 20 | . 20 Squads Dispatched 3 | . 3 Investigation 1 | . 1 Extermination . | . . Reinforcement 2 | . 2 Assault . | . . Garrison . | . . Intercept . | . . Searches Triggered . | . . Construction Impeded . | . . Haulers Reinforced . | . . Active Scanning Responses . | . . Cargo Convoy Interrupts . | . . Stealth | -11 -10 --------- Run | Yrd Mat Distress Signals . | . . Communications Jammed . | . . Distress Signals . | . . Times Spotted 25 | . 25 Peak Tracking Total 3 | . 3 Tactical Retreats . | . . Traps | -11 -10 ------- Run | Yrd Mat Traps Triggered 6 | . 6 Indirectly . | . . Trap Hack Attempts . | . . Triggered . | . . Disarmed . | . . Reprogrammed . | . . Reused . | . . Traps Extracted . | . . Installed . | . . Triggered . | . . Machines | -11 -10 ---------- Run | Yrd Mat Machines Disabled 2 | . 2 Max in Single Turn 1 | . 1 Machines Repaired . | . . Machines Dismantled . | . . Machines Sabotaged . | . . Overloaded Fab Kills . | . . Hacking | -11 -10 --------- Run | Yrd Mat Machines Accessed 7 | . 7 Terminals 6 | . 6 Fabricators . | . . Repair Stations 1 | . 1 Recycling Units . | . . Scanalyzers . | . . Garrison Access . | . . Total Hacks 19 | . 19 Successful 10 | . 10 Failed 9 | . 9 Catastrophic 2 | . 2 Database Lockouts . | . . Manual . | . . Terminals 17 | . 17 Fabricators . | . . Repair Stations 2 | . 2 Recycling Units . | . . Scanalyzers . | . . Garrison Access . | . . Terminal Hacks 8 | . 8 Alert Level 2 | . 2 Locate Traps 1 | . 1 Reinforcement Status 1 | . 1 Hauler Manifests 2 | . 2 Registered Components 1 | . 1 Zone Layout 1 | . 1 Fabricator Hacks . | . . Repair Station Hacks 2 | . 2 Scan Component 1 | . 1 Repair 1 | . 1 Recycling Unit Hacks . | . . Scanalyzer . | . . Garrison Access Hacks . | . . Unauthorized Hacks . | . . Terminals . | . . Fabricators . | . . Repair Stations . | . . Recycling Units . | . . Scanalyzers . | . . Garrison Access . | . . Data Cores Recovered . | . . Used . | . . Hacking Detections 7 | . 7 Full Trace Events 1 | . 1 Feedback Events . | . . Feedback Blocked . | . . Robot Schematics Acquired . | . . Robots Built . | . . Authchips . | . . Time . | . . Total Robot Build Rating . | . . Part Schematics Acquired . | . . Parts Built . | . . Authchips . | . . Time . | . . Total Part Build Rating . | . . Part Studies Acquired . | . . Parts Repaired 1 | . 1 Time 32 | . 32 Parts Recycled . | . . Recycled Matter . | . . Retrieved Matter . | . . Retrieved Components . | . . Parts Scanalyzed . | . . Part Schematics Acquired . | . . Parts Damaged . | . . Bothacking | -11 -10 ------------ Run | Yrd Mat Used RIF Installer . | . . Robots Hacked . | . . Non-combat . | . . Combat . | . . Robot Hacks Applied . | . . Relay Couplers Released . | . . Fabnet Peak Effective % . | . . Robots Rewired . | . . Allies Hacked . | . . Hacks Repelled . | . . Allies | -11 -10 -------- Run | Yrd Mat Total Allies . | . . Largest Group . | . . Highest-Rated Group . | . . Highest-Rated Ally . | . . Total Orders . | . . Ally Attacks . | . . Total Damage . | . . Kills . | . . Allies Corrupted . | . . Allies Melted . | . . Intel | -11 -10 ------- Run | Yrd Mat Active Infowar (turns) 392 | . 392 T.N.C. 392 | . 392 Robot Analysis Total . | . . Derelict Logs Recovered . | . . Drone Launches . | . . Drone Recoveries . | . . Exploration | -11 -10 ------------- Run | Yrd Mat Turns Passed 2787 | 181 2606 Spaces Moved 1381 | 113 1268 Core 25 | 25 . Treads 1268 | 88 1180 Legs 88 | . 88 Wheels . | . . Hover . | . . Flight . | . . Fastest Speed 50 | 50 160 Average Speed 163 | 135 165 Slowest Speed 240 | 160 240 Overloaded Moves . | . . Propulsion Burnouts . | . . Robots Hopped . | . . Potential Cave-ins . | . . Cave-ins Triggered . | . . Exploration Rate (%) 49 | 6 93 Regions Visited 1 Branch Regions . Pre-discovered Areas . | . . Known Exits Taken . | . . Unknown Exits Taken 1 | 1 . Scrap Searched . | . . Spaces Dug . | . . Terrain Destroyed 160 | . 160 Melee . | . . Projectile . | . . AOE 160 | . 160 Terrain Rammed . | . . Walls Destroyed . | . . Machines Disabled . | . . Actions | -11 -10 --------- Run | Yrd Mat Total 1766 | 132 1634 Wait 196 | . 196 Move 1380 | 112 1268 Hop . | . . Pick Up 40 | 7 33 Fast Attach 6 | 1 5 Attach 16 | 4 12 Detach 1 | . 1 Swap 20 | . 20 Drop 25 | . 25 Fire 81 | 8 73 Melee . | . . Ram . | . . Kick . | . . Crush 1 | . 1 Escape Stasis . | . . Rewire . | . . Trap . | . . Miscellaneous . | . . Route ------- -11/Scrapyard -10/Materials (discovered 5 exits: *Mat x3 / [*Min] / [*Sub]) History --------- Turn | Location | Event 6 | -11/Scrapyard | Discovered new exit (range 16) 182 | -11/Scrapyard | Entered Materials 325 | -10/Materials | Build established: Mutant 798 | -10/Materials | Discovered new exit (range 9) 917 | -10/Materials | Discovered new exit (range 9) 999 | -10/Materials | Discovered new exit (range 12) 1160 | -10/Materials | Discovered new exit (range 4) 1364 | -10/Materials | Discovered new exit (range 9) 2239 | -10/Materials | Core integrity fell below 50% 2323 | -10/Materials | Identified exit to Materials 2363 | -10/Materials | Core integrity fell below 20% 2458 | -10/Materials | Repaired Rocket Launcher 2788 | -10/Materials | Destroyed by G-34 Mercenary with Small Laser Last Messages --------------- 02453_ GDLRB##JERDUP|O8LNUUBSZ#MW5ZLFWY85 02458_ Repair station completes Rocket Launcher repairs. 02458_ Acquired Rocket Launcher. 02468_ System corrupted: Heat flow error (+255). 02469_ Overheating: System interference. 02469_ Assault Rifle temporarily disabled. 02478_ Acquired Aluminum Leg. 02482_ Dropped Lgt. Treads. 02507_ GF,B>AZIF=<=TAMOTUB 0BRKR 02538_ System corrupted: Heat flow error (+177). 02548_ Acquired Hcp. Storage Unit. 02556_ Triggered Alarm Trap. 02556_ An alarm sounds. 02556_ ALERT: Alarm triggered, dispatching investigation squad. 02564_ System corrupted: Aluminum Leg fused. 02624_ System corrupted: Matter fused (-7). 02702_ CAL JAZDQJ4P9KAOJNYBMLNDZK 02773_ System corrupted: Heat flow error (+295). Map ----- +----------------------------------------------------+ | ########## #???????????? | | """""""""# #???????????? | | # "# """ #???????????? | | # "" """ ###?"???????? | | + ! """ # "???????? | | #=% + ????????? | | # | = #?????????? | | #"""" # "#### """ #?????????? | | !"" ##??# """ #?????????? | | !" #???# """ #?#+??????? | | ########## #?# #?????? | | #?????#""" #?# #?????? | | !#?????#"R =!! ### #?????? | | ## < !##?????#""" =![ ##????? | | #####?????#### ! #????? | | ####????????????# #????? | | ###???????????????# #### #????? | | ??????????????????########### #####+#####? | | ??????????????????# # # #? | | #########?????????# """ """ + + #? | | #?????????# """ """ # # #? | | """"" #?????????# """g""" # # """ #? | | ""T"" #?????????# gg#### "" """ #? | | #?????????# #??# "Y """ #? | | #?????????# ! #??# "" #? | | #?????????# @ *#??# #? | | #########?????????###########??###########? | | ??????????????????????????????????????????? | | | | | | | | | | | | | | | | | | | | | | | | | | | | | | | | | | | | | | | | | | | | | +----------------------------------------------------+ Best States ------------- Heat Dissipation 25 Energy Generation 10 Energy Capacity 250 Matter Stores 300 Matter Capacity 400 Sight Range 16 Terrain Scan Density 10 Armor Coverage 150 Evasion (%) 50 Recoil Reduction 2 Item Schematics ----------------- None Robot Schematics ------------------ None Fabricated ------------ Nothing Repaired ---------- Rocket Launcher | 52% | -10/Materials Studied --------- None Alien Tech Used ----------------- None Achievements -------------- Maybe Next Time I'll Detach My Launcher Challenges ------------ None Game ------ Seed TerrainWeaponInsulator Manual? 0 Play Time 00:23:09 Cumulative 5.4 hours Start 2026.07.20 @ 01:02:39 End 2026.07.20 @ 01:25:42 Sessions 1 Manual Loads 0 Difficulty Rogue Special Mode None Game No. 5 Rogue 5 Adventurer 0 Explorer 0 Win Type - Total 0 Types 0/0/0/0/0/0/0/0/0/0 Lore% 3 Gallery% 5 Achievement% 7 Wizard Run 0 Options --------- Layout 2 ASCII 0 Keyboard 0 Movement Mouse Keybinds 1 Fullscreen 1 Font 24/Terminus Map View 50x44 Zoom Use 0% Tactical HUD 1 Map Filters NONE Filters NONE Steam 1 RUN: 33b6fe00-e0df-4c97-8498-4290ddab5468